[Event "FIDE World Cup O10-B 2024"]
[Site "Batumi"]
[Date "2024.06.25"]
[Round "3.11"]
[White "Popov, Aleksandr And"]
[Black "Karthik, Anand T."]
[Result "0-1"]
[ECO "A31"]
[WhiteElo "1661"]
[BlackElo "2022"]
[Annotator "NA RC"]
[PlyCount "148"]
[EventDate "2024.06.23"]
[EventType "swiss"]
[EventCountry "GEO"]
[SourceTitle "playchess.com"]
[Source "ChessBase"]
[SourceQuality "1"]
[TimeControl "5400+30"]

1. e4 {[%emt 0:00:01]} c5 {[%emt 0:00:30]} 2. Nf3 {[%emt 0:00:07]} e6 {[%emt 0:00:32]} 3. d4 {[%emt 0:00:18]} cxd4 {[%emt 0:01:45]} 4. Nxd4 {[%emt 0:00:34]} a6 {[%emt 0:00:06]} 5. c4 {[%emt 0:00:15]} Qc7 {[%emt 0:01:00]} 6. Nc3 {[%emt 0:00:27]} d6 {[%emt 0:00:08]} 7. Be2 {[%emt 0:01:30]} Nf6 {[%emt 0:00:39]} 8. Be3 {[%emt 0:01:30]} Nbd7 {[%emt 0:01:36]} 9. O-O {[%emt 0:02:49]} b6 {[%emt 0:01:19]} 10. Rc1 {[%emt 0:05:30]} Bb7 {[%emt 0:00:56]} 11. f3 {[%emt 0:01:45]} Be7 {[%emt 0:01:02]} 12. Qd2 {[%emt 0:01:30]} O-O {[%emt 0:00:58]} 13. Rfd1 {[%emt 0:01:44]} Rac8 {[%emt 0:01:59]} 14. Kh1 {[%emt 0:07:12] A31: Symmetrical English: 2 Nf3 Nf6 3 d4.} Qb8 {[%emt 0:01:57]} 15. b3 {[%emt 0:09:29]} Bd8 {[%emt 0:01:38]} 16. Nc2 {[%emt 0:02:18]} Bc7 {[%emt 0:02:01]} 17. Bg1 {[%emt 0:03:26]} Rfd8 {[%emt 0:01:12]} 18. Ne3 {[%emt 0:05:19]} Ne5 {[%emt 0:04:30]} 19. Qe1 {[%emt 0:06:01]} Ng6 {[%emt 0:04:16]} 20. Rd2 {[%emt 0:07:16]} Bc6 {[%emt 0:04:07]} (20... Re8 $11) 21. a4 {[%emt 0:02:02]} h5 {[%emt 0:04:41]} 22. h4 {[%emt 0:04:44]} Nd7 {[%emt 0:02:40]} 23. b4 {[%emt 0:05:15]} Nde5 {[%emt 0:04:41]} 24. b5 {[%emt 0:01:37]} axb5 {[%emt 0:00:39]} 25. axb5 {[%emt 0:02:32]} Bb7 $16 {[%emt 0:00:35]} 26. Bf2 {[%emt 0:02:53]} Nd7 {[%emt 0:01:37]} 27. Rcd1 {[%emt 0:03:14]} Nc5 {[%emt 0:00:57]} 28. Na2 {[%emt 0:02:57]} Ne5 {[%emt 0:08:54]} 29. Nb4 {[%emt 0:02:35]} g6 {[%emt 0:03:08]} 30. Nd3 {[%emt 0:01:40]} Ned7 {[%emt 0:01:01]} 31. Nxc5 {[%emt 0:00:38]} Nxc5 {[%emt 0:00:21]} 32. Bg3 {[%emt 0:01:00]} f6 {[%emt 0:03:13]} 33. Ra2 {[%emt 0:01:05]} e5 {[%emt 0:03:36]} 34. Bf2 {[%emt 0:01:00]} Rf8 {[%emt 0:02:39]} 35. Bg1 {[%emt 0:01:21]} Kh7 {[%emt 0:00:59]} 36. Qg3 {[%emt 0:02:59]} Rf7 {[%emt 0:01:10]} 37. Qh3 {[%emt 0:00:25]} Rcf8 {[%emt 0:01:04]} 38. g4 {[%emt 0:00:46]} Bc8 {[%emt 0:02:53]} 39. Rda1 {[%emt 0:01:04]} hxg4 {[%emt 0:00:10]} 40. fxg4 {[%emt 0:11:42]} Bb7 {[%emt 0:02:04]} 41. Bf3 {[%emt 0:00:00]} Nb3 {[%emt 0:02:37]} 42. Rb1 {[%emt 0:00:00]} Nc5 {[%emt 0:01:06]} 43. h5 {[%emt 0:00:00]} g5 {[%emt 0:00:10]} 44. Qg2 {[%emt 0:00:00]} Qc8 {[%emt 0:01:29]} 45. Nf5 {[%emt 0:00:00]} Qe6 {[%emt 0:00:42]} 46. Qc2 {[%emt 0:00:00]} Bb8 {[%emt 0:00:46]} 47. Rd1 {[%emt 0:00:00]} Rc8 {[%emt 0:00:12]} 48. Bxc5 {[%emt 0:00:00]} Rxc5 {[%emt 0:01:22]} 49. Ra4 {[%emt 0:00:00]} Rf8 {[%emt 0:00:36]} 50. Qe2 {[%emt 0:00:00]} Rfc8 {[%emt 0:00:21]} 51. Ne3 {[%emt 0:00:00]} Bc7 {[%emt 0:01:43]} 52. Ra7 {[%emt 0:00:00]} Rb8 {[%emt 0:00:27]} 53. Rc1 {[%emt 0:06:30]} Qc8 {[%emt 0:00:59]} 54. Nf5 {[%emt 0:00:00]} Ra8 {[%emt 0:01:17]} 55. Qa2 {[%emt 0:00:00]} Qb8 {[%emt 0:01:59]} 56. Rxa8 {[%emt 0:00:00]} Bxa8 {[%emt 0:00:08]} 57. Rd1 {[%emt 0:00:00]} Bb7 {[%emt 0:01:23]} 58. Kg1 {[%emt 0:00:00]} Bc8 {[%emt 0:02:00]} 59. Ne7 {[%emt 0:00:00]} Be6 {[%emt 0:00:25]} 60. Nd5 {[%emt 0:00:00]} Bd8 {[%emt 0:00:43]} 61. Ne3 {[%emt 0:00:00]} Qc7 {[%emt 0:00:32]} 62. Rc1 {[%emt 0:00:00]} Rxb5 {[%emt 0:00:36]} 63. Nd5 {[%emt 0:00:00]} Qc5+ {[%emt 0:00:00]} 64. Kg2 {[%emt 0:00:00]} Ra5 {[%emt 0:00:00]} 65. Qe2 {[%emt 0:00:00]} Ra4 {[%emt 0:00:33]} 66. Rc2 {[%emt 0:00:00]} Bc8 {[%emt 0:01:57]} 67. Qf1 {[%emt 0:00:14]} Qd4 {[%emt 0:00:47]} 68. Qe2 {[%emt 0:00:27]} Ba6 {[%emt 0:01:06]} 69. Ne3 {[%emt 0:00:06]} Qc5 {[%emt 0:02:54]} 70. Kg3 {[%emt 0:01:44]} Ra3 {[%emt 0:00:27]} 71. Nf5 {[%emt 0:00:23]} Bc7 {[%emt 0:02:58]} 72. Qf1 {[%emt 0:01:59]} d5 {[%emt 0:02:32]} 73. Qe1 {[%emt 0:01:18]} Bxc4 {[%emt 0:00:51]} 74. exd5 {[%emt 0:01:02]} e4+ {[%emt 0:12:39]} 0-1